[Event "Early-Titled-Tuesday-Blitz-June-18-2024"]
[Site "Chess.com"]
[Date "2024.06.18"]
[Round "5"]
[White "chezzgirl04"]
[Black "Defend1r"]
[Result "0-1"]
[WhiteElo "2226"]
[BlackElo "2549"]
[TimeControl "180+1"]
[EndTime "8:59:07 PDT"]
[Termination "Defend1r won on time"]

1. e4 {[%clk 0:02:52.6]} 1... e6 {[%clk 0:02:54.1]} 2. d4 {[%clk 0:02:51.4]}
2... d5 {[%clk 0:02:54]} 3. exd5 {[%clk 0:02:49.4]} 3... exd5 {[%clk 0:02:53.4]}
4. Nf3 {[%clk 0:02:49.8]} 4... h6 {[%clk 0:02:53.5]} 5. Bd3 {[%clk 0:02:49.5]}
5... Bd6 {[%clk 0:02:53.7]} 6. O-O {[%clk 0:02:49.7]} 6... Ne7 {[%clk
0:02:54.3]} 7. b3 {[%clk 0:02:47.5]} 7... O-O {[%clk 0:02:54.7]} 8. c4 {[%clk
0:02:47.9]} 8... c6 {[%clk 0:02:54.6]} 9. c5 {[%clk 0:02:48.2]} 9... Bc7 {[%clk
0:02:54.6]} 10. Ne5 {[%clk 0:02:48.6]} 10... Nd7 {[%clk 0:02:45.4]} 11. f4
{[%clk 0:02:44.6]} 11... Nf6 {[%clk 0:02:43.4]} 12. Nc3 {[%clk 0:02:41.3]} 12...
Bf5 {[%clk 0:02:38.8]} 13. h3 {[%clk 0:02:36.6]} 13... Ne4 {[%clk 0:01:38.7]}
14. Qc2 {[%clk 0:02:22.5]} 14... f6 {[%clk 0:01:32.6]} 15. Nf3 {[%clk
0:02:12.5]} 15... Nxc3 {[%clk 0:01:07.4]} 16. Bxf5 {[%clk 0:02:07.6]} 16... Nxf5
{[%clk 0:01:06.4]} 17. Qxf5 {[%clk 0:02:05]} 17... Ne4 {[%clk 0:01:06]} 18. Qe6+
{[%clk 0:01:55.3]} 18... Kh8 {[%clk 0:01:05]} 19. Nh4 {[%clk 0:01:55.2]} 19...
Qe8 {[%clk 0:00:57.7]} 20. Qg4 {[%clk 0:01:54.7]} 20... Rf7 {[%clk 0:00:38.3]}
21. Ng6+ {[%clk 0:01:40.6]} 21... Kg8 {[%clk 0:00:36.8]} 22. f5 {[%clk
0:01:40.8]} 22... Ng3 {[%clk 0:00:30.8]} 23. Bf4 {[%clk 0:01:36.9]} 23... Bxf4
{[%clk 0:00:20.3]} 24. Nxf4 {[%clk 0:01:30.7]} 24... Nxf1 {[%clk 0:00:19.7]} 25.
Rxf1 {[%clk 0:01:28.3]} 25... Qe3+ {[%clk 0:00:19.4]} 26. Kh1 {[%clk 0:01:25.2]}
26... Qxd4 {[%clk 0:00:18.6]} 27. Qg6 {[%clk 0:01:20.1]} 27... Re8 {[%clk
0:00:17.4]} 28. Ne6 {[%clk 0:01:18.2]} 28... Qd3 {[%clk 0:00:16.6]} 29. Rf3
{[%clk 0:01:16.3]} 29... Qb1+ {[%clk 0:00:16.2]} 30. Kh2 {[%clk 0:01:16.3]}
30... Rxe6 {[%clk 0:00:16.4]} 31. Rg3 {[%clk 0:00:46.9]} 31... Re1 {[%clk
0:00:14.8]} 32. Rf3 {[%clk 0:00:41.8]} 32... Rh1+ {[%clk 0:00:14.6]} 33. Kg3
{[%clk 0:00:42.2]} 33... Qe1+ {[%clk 0:00:15.2]} 34. Kg4 {[%clk 0:00:42.2]}
34... Qe4+ {[%clk 0:00:13.8]} 35. Kg3 {[%clk 0:00:40.7]} 35... Re7 {[%clk
0:00:11.2]} 36. Qh5 {[%clk 0:00:33.3]} 36... Qe1+ {[%clk 0:00:10.6]} 37. Kg4
{[%clk 0:00:31.3]} 37... Re4+ {[%clk 0:00:09.5]} 38. Rf4 {[%clk 0:00:32.2]}
38... Qe2+ {[%clk 0:00:08.5]} 39. Kg3 {[%clk 0:00:31]} 39... Qxh5 {[%clk
0:00:05.9]} 40. Rxe4 {[%clk 0:00:30.7]} 40... dxe4 {[%clk 0:00:06.8]} 41. Kf4
{[%clk 0:00:17.9]} 41... Rf1+ {[%clk 0:00:07.3]} 42. Kxe4 {[%clk 0:00:17.8]}
42... Qxf5+ {[%clk 0:00:07.5]} 43. Kd4 {[%clk 0:00:17.5]} 43... Qd5+ {[%clk
0:00:07.8]} 44. Kc3 {[%clk 0:00:13.8]} 44... Ra1 {[%clk 0:00:07.7]} 45. Kb2
{[%clk 0:00:12.7]} 45... Rg1 {[%clk 0:00:08.3]} 46. Ka3 {[%clk 0:00:12.8]} 46...
Rxg2 {[%clk 0:00:09.2]} 47. Kb4 {[%clk 0:00:12.2]} 47... Qd3 {[%clk 0:00:08.9]}
48. a4 {[%clk 0:00:09.4]} 48... Qd4+ {[%clk 0:00:08.8]} 49. Ka5 {[%clk
0:00:09.3]} 49... Rb2 {[%clk 0:00:07.2]} 50. b4 {[%clk 0:00:06.9]} 50... Ra2
{[%clk 0:00:06.4]} 51. b5 {[%clk 0:00:04.9]} 51... Qxc5 {[%clk 0:00:06.1]} 52.
h4 {[%clk 0:00:03.1]} 52... Qb6+ {[%clk 0:00:06.4]} 53. Kb4 {[%clk 0:00:02.8]}
53... c5+ {[%clk 0:00:07.1]} 54. Kb3 {[%clk 0:00:02.4]} 54... Rh2 {[%clk
0:00:07.7]} 55. h5 {[%clk 0:00:02.4]} 55... Qd6 {[%clk 0:00:07.1]} 0-1

[Event "Early-Titled-Tuesday-Blitz-June-18-2024"]
[Site "Chess.com"]
[Date "2024.06.18"]
[Round "5"]
[White "Barboval"]
[Black "GMAneta"]
[Result "1-0"]
[WhiteElo "2533"]
[BlackElo "2359"]
[TimeControl "180+1"]
[EndTime "8:59:07 PDT"]
[Termination "Barboval won on time"]

1. d4 {[%clk 0:03:00.9]} 1... Nf6 {[%clk 0:02:59.3]} 2. Bg5 {[%clk 0:03:00]}
2... e6 {[%clk 0:02:57.9]} 3. e4 {[%clk 0:02:59.8]} 3... h6 {[%clk 0:02:56.3]}
4. Bxf6 {[%clk 0:02:59.9]} 4... Qxf6 {[%clk 0:02:57.1]} 5. c3 {[%clk 0:03:00.5]}
5... d5 {[%clk 0:02:56.5]} 6. Bd3 {[%clk 0:02:59.2]} 6... dxe4 {[%clk
0:02:53.5]} 7. Bxe4 {[%clk 0:03:00.1]} 7... c5 {[%clk 0:02:53.5]} 8. Nf3 {[%clk
0:02:58]} 8... Nc6 {[%clk 0:02:49.5]} 9. O-O {[%clk 0:02:47.4]} 9... Bd7 {[%clk
0:02:43.1]} 10. Na3 {[%clk 0:02:27.7]} 10... a6 {[%clk 0:02:15.7]} 11. Nc4
{[%clk 0:02:25]} 11... cxd4 {[%clk 0:02:12.4]} 12. Nb6 {[%clk 0:01:51.2]} 12...
Rd8 {[%clk 0:02:10.6]} 13. Nxd7 {[%clk 0:01:51.8]} 13... Rxd7 {[%clk 0:02:08.2]}
14. Bxc6 {[%clk 0:01:50.5]} 14... bxc6 {[%clk 0:02:07.9]} 15. cxd4 {[%clk
0:01:51.4]} 15... Qf5 {[%clk 0:02:05]} 16. Rc1 {[%clk 0:01:47.8]} 16... Rc7
{[%clk 0:02:04.7]} 17. Qa4 {[%clk 0:01:35.3]} 17... Qb5 {[%clk 0:02:03.7]} 18.
Qxb5 {[%clk 0:01:32.4]} 18... axb5 {[%clk 0:02:01.1]} 19. Ne5 {[%clk 0:01:32.8]}
19... c5 {[%clk 0:02:01.1]} 20. dxc5 {[%clk 0:01:28.1]} 20... Bxc5 {[%clk
0:01:59.9]} 21. Nd3 {[%clk 0:01:03.9]} 21... Bd6 {[%clk 0:01:58.3]} 22. Rxc7
{[%clk 0:01:04.8]} 22... Bxc7 {[%clk 0:01:58.4]} 23. Rc1 {[%clk 0:01:05.7]}
23... Kd7 {[%clk 0:01:53.8]} 24. Nc5+ {[%clk 0:00:53.1]} 24... Kd6 {[%clk
0:01:53.2]} 25. Ne4+ {[%clk 0:00:35.4]} 25... Kd7 {[%clk 0:01:53]} 26. Nc5+
{[%clk 0:00:23.9]} 26... Kd6 {[%clk 0:01:52.9]} 27. Ne4+ {[%clk 0:00:23.7]}
27... Kd7 {[%clk 0:01:52.5]} 28. Rd1+ {[%clk 0:00:21.1]} 28... Kc6 {[%clk
0:01:51.8]} 29. Rc1+ {[%clk 0:00:20.3]} 29... Kb6 {[%clk 0:01:51.7]} 30. a3
{[%clk 0:00:19.9]} 30... Rd8 {[%clk 0:01:50.7]} 31. g3 {[%clk 0:00:17.6]} 31...
Rd4 {[%clk 0:01:49]} 32. Nc3 {[%clk 0:00:16.4]} 32... Rd2 {[%clk 0:01:47.5]} 33.
Nxb5 {[%clk 0:00:15.9]} 33... Be5 {[%clk 0:01:44.6]} 34. Nc3 {[%clk 0:00:14]}
34... Bd4 {[%clk 0:01:39.6]} 35. Rf1 {[%clk 0:00:05.8]} 35... Kc6 {[%clk
0:01:31.7]} 36. Nd1 {[%clk 0:00:03.8]} 36... Kb5 {[%clk 0:01:13.7]} 37. Kg2
{[%clk 0:00:04]} 37... Kc4 {[%clk 0:01:13.6]} 38. b4 {[%clk 0:00:04]} 38... Kb3
{[%clk 0:01:11.8]} 39. Kf3 {[%clk 0:00:03.8]} 39... Kxa3 {[%clk 0:01:11.8]} 40.
b5 {[%clk 0:00:04.4]} 40... Kb4 {[%clk 0:01:11.9]} 41. b6 {[%clk 0:00:04.5]}
41... Bxb6 {[%clk 0:01:11.9]} 42. Ne3 {[%clk 0:00:03.9]} 42... Kc3 {[%clk
0:01:11.5]} 43. Rc1+ {[%clk 0:00:03.7]} 43... Kd3 {[%clk 0:01:10.3]} 44. Rc6
{[%clk 0:00:02.1]} 44... Ba5 {[%clk 0:01:07.8]} 45. Ra6 {[%clk 0:00:01.6]} 45...
Ra2 {[%clk 0:01:06.8]} 46. Rd6+ {[%clk 0:00:01.1]} 46... Kc3 {[%clk 0:01:05.8]}
47. Rd7 {[%clk 0:00:02]} 47... f5 {[%clk 0:01:02.2]} 48. Rxg7 {[%clk 0:00:02.9]}
48... Bb6 {[%clk 0:01:02.2]} 49. Rg6 {[%clk 0:00:03.1]} 49... Bxe3 {[%clk
0:00:59.9]} 50. Kxe3 {[%clk 0:00:04]} 50... e5 {[%clk 0:00:57.7]} 51. Rxh6
{[%clk 0:00:04.3]} 51... f4+ {[%clk 0:00:57.8]} 52. gxf4 {[%clk 0:00:04.6]}
52... exf4+ {[%clk 0:00:58.7]} 53. Kf3 {[%clk 0:00:05.2]} 53... Kd4 {[%clk
0:00:59.2]} 54. Re6 {[%clk 0:00:05.3]} 54... Kd5 {[%clk 0:00:55.3]} 55. Re8
{[%clk 0:00:05.2]} 55... Kd4 {[%clk 0:00:55.5]} 56. h4 {[%clk 0:00:05.6]} 56...
Kd5 {[%clk 0:00:53.8]} 57. h5 {[%clk 0:00:05.7]} 57... Kd4 {[%clk 0:00:51.8]}
58. h6 {[%clk 0:00:06.2]} 58... Ra6 {[%clk 0:00:49.9]} 59. h7 {[%clk 0:00:06]}
1-0

[Event "Early-Titled-Tuesday-Blitz-June-18-2024"]
[Site "Chess.com"]
[Date "2024.06.18"]
[Round "5"]
[White "Keeper0416"]
[Black "Karateloru"]
[Result "0-1"]
[WhiteElo "2555"]
[BlackElo "2785"]
[TimeControl "180+1"]
[EndTime "8:59:08 PDT"]
[Termination "Karateloru won on time"]

1. d4 {[%clk 0:03:00.9]} 1... Nf6 {[%clk 0:02:59.3]} 2. Bf4 {[%clk 0:02:58.7]}
2... e6 {[%clk 0:02:59.4]} 3. Nc3 {[%clk 0:02:49.2]} 3... Bb4 {[%clk 0:02:54.5]}
4. a3 {[%clk 0:02:43.2]} 4... Bxc3+ {[%clk 0:02:50.6]} 5. bxc3 {[%clk 0:02:44]}
5... b6 {[%clk 0:02:50.8]} 6. Nf3 {[%clk 0:02:42.1]} 6... Bb7 {[%clk 0:02:50.8]}
7. g3 {[%clk 0:02:42.6]} 7... d6 {[%clk 0:02:49.8]} 8. Bg2 {[%clk 0:02:41.2]}
8... Nbd7 {[%clk 0:02:49.8]} 9. O-O {[%clk 0:02:41.5]} 9... O-O {[%clk
0:02:49.7]} 10. Bc1 {[%clk 0:02:34.1]} 10... Qe7 {[%clk 0:02:39.2]} 11. c4
{[%clk 0:02:32.2]} 11... c5 {[%clk 0:02:35.2]} 12. c3 {[%clk 0:02:17.7]} 12...
Rac8 {[%clk 0:02:33.2]} 13. Nd2 {[%clk 0:02:14.5]} 13... Bxg2 {[%clk 0:02:31.6]}
14. Kxg2 {[%clk 0:02:15.4]} 14... Nb8 {[%clk 0:02:27.9]} 15. Bb2 {[%clk
0:02:02.5]} 15... Nc6 {[%clk 0:02:26.8]} 16. e3 {[%clk 0:01:58.4]} 16... Na5
{[%clk 0:02:26.6]} 17. Qe2 {[%clk 0:01:57.8]} 17... Qb7+ {[%clk 0:02:24.2]} 18.
f3 {[%clk 0:01:52.4]} 18... Qa6 {[%clk 0:02:23.1]} 19. Rfc1 {[%clk 0:01:27.3]}
19... d5 {[%clk 0:02:20.6]} 20. e4 {[%clk 0:01:19.5]} 20... Nxc4 {[%clk
0:02:09.7]} 21. Nxc4 {[%clk 0:01:19]} 21... Qxc4 {[%clk 0:02:05.6]} 22. Qxc4
{[%clk 0:01:16.3]} 22... dxc4 {[%clk 0:02:06.5]} 23. a4 {[%clk 0:01:15.7]} 23...
Rfd8 {[%clk 0:02:03]} 24. Kf2 {[%clk 0:01:12.6]} 24... a6 {[%clk 0:01:57.7]} 25.
Ke2 {[%clk 0:01:05.6]} 25... Nd7 {[%clk 0:01:56.1]} 26. Ke3 {[%clk 0:01:02.5]}
26... Nb8 {[%clk 0:01:53.6]} 27. Rab1 {[%clk 0:00:50.6]} 27... Nc6 {[%clk
0:01:37.2]} 28. Ba1 {[%clk 0:00:50.2]} 28... Rb8 {[%clk 0:01:15.1]} 29. Bb2
{[%clk 0:00:36.5]} 29... Na5 {[%clk 0:01:14]} 30. Rd1 {[%clk 0:00:35]} 30... Nb3
{[%clk 0:01:10.6]} 31. Ba3 {[%clk 0:00:34.4]} 31... cxd4+ {[%clk 0:01:06.1]} 32.
cxd4 {[%clk 0:00:35.3]} 32... b5 {[%clk 0:01:06]} 33. axb5 {[%clk 0:00:32.3]}
33... axb5 {[%clk 0:01:06.9]} 34. Bb4 {[%clk 0:00:29.1]} 34... Ra8 {[%clk
0:01:06.4]} 35. d5 {[%clk 0:00:09.7]} 35... exd5 {[%clk 0:01:07.3]} 36. exd5
{[%clk 0:00:10.1]} 36... f6 {[%clk 0:01:03.5]} 37. Be7 {[%clk 0:00:09.5]} 37...
Rd7 {[%clk 0:01:02.7]} 38. d6 {[%clk 0:00:09.8]} 38... Kf7 {[%clk 0:00:58.6]}
39. Rd5 {[%clk 0:00:09.7]} 39... Rb8 {[%clk 0:00:53.2]} 40. f4 {[%clk
0:00:04.3]} 40... Ke6 {[%clk 0:00:51.9]} 41. Ke4 {[%clk 0:00:04.9]} 41... f5+
{[%clk 0:00:44.9]} 42. Rxf5 {[%clk 0:00:05]} 42... Nd2+ {[%clk 0:00:44.8]} 43.
Ke3 {[%clk 0:00:05.3]} 43... Nxb1 {[%clk 0:00:33.1]} 44. g4 {[%clk 0:00:05.4]}
44... Rxe7 {[%clk 0:00:30.9]} 45. dxe7 {[%clk 0:00:06.3]} 45... Kxe7 {[%clk
0:00:30.4]} 46. Re5+ {[%clk 0:00:03.7]} 46... Kd6 {[%clk 0:00:29.9]} 47. Kd4
{[%clk 0:00:04.6]} 47... c3 {[%clk 0:00:28.1]} 48. Kd3 {[%clk 0:00:05]} 48... b4
{[%clk 0:00:27.4]} 49. Kc2 {[%clk 0:00:05]} 49... Na3+ {[%clk 0:00:26.6]} 50.
Kb3 {[%clk 0:00:05.3]} 50... c2 {[%clk 0:00:26.9]} 51. Re1 {[%clk 0:00:06]}
51... Rc8 {[%clk 0:00:27.1]} 52. Rc1 {[%clk 0:00:06.7]} 52... Rc4 {[%clk
0:00:25.6]} 53. h3 {[%clk 0:00:03.1]} 53... Kc5 {[%clk 0:00:25]} 54. Ka4 {[%clk
0:00:04]} 54... Nb5 {[%clk 0:00:22.6]} 55. f5 {[%clk 0:00:03.6]} 55... Nd4
{[%clk 0:00:22.1]} 56. g5 {[%clk 0:00:03.3]} 56... Rc3 {[%clk 0:00:22.2]} 57.
Ra1 {[%clk 0:00:02.2]} 57... c1=Q {[%clk 0:00:21.6]} 58. Rxc1 {[%clk 0:00:02.6]}
58... Rxc1 {[%clk 0:00:21.7]} 0-1

[Event "Early-Titled-Tuesday-Blitz-June-18-2024"]
[Site "Chess.com"]
[Date "2024.06.18"]
[Round "5"]
[White "klimkoj"]
[Black "dropstoneDP"]
[Result "0-1"]
[WhiteElo "2895"]
[BlackElo "2990"]
[TimeControl "180+1"]
[EndTime "8:59:11 PDT"]
[Termination "dropstoneDP won by checkmate"]

1. e4 {[%clk 0:03:00.9]} 1... e5 {[%clk 0:02:54.5]} 2. Nf3 {[%clk 0:03:00.8]}
2... Nf6 {[%clk 0:02:54.1]} 3. d3 {[%clk 0:02:56.7]} 3... Nc6 {[%clk 0:02:53.3]}
4. g3 {[%clk 0:02:56.9]} 4... Bc5 {[%clk 0:02:52.2]} 5. Bg2 {[%clk 0:02:56.6]}
5... d6 {[%clk 0:02:52.8]} 6. O-O {[%clk 0:02:57]} 6... O-O {[%clk 0:02:53]} 7.
c3 {[%clk 0:02:57.6]} 7... h6 {[%clk 0:02:52.3]} 8. b4 {[%clk 0:02:54.5]} 8...
Bb6 {[%clk 0:02:52.2]} 9. a4 {[%clk 0:02:55.4]} 9... a5 {[%clk 0:02:52.3]} 10.
b5 {[%clk 0:02:55]} 10... Ne7 {[%clk 0:02:52.9]} 11. c4 {[%clk 0:02:54.1]} 11...
Ng6 {[%clk 0:02:50.6]} 12. Nc3 {[%clk 0:02:48.1]} 12... Re8 {[%clk 0:02:48.7]}
13. Be3 {[%clk 0:02:42.2]} 13... Bxe3 {[%clk 0:02:45.8]} 14. fxe3 {[%clk
0:02:43.1]} 14... c6 {[%clk 0:02:46.6]} 15. Qe2 {[%clk 0:02:20.7]} 15... Be6
{[%clk 0:02:45.3]} 16. d4 {[%clk 0:01:50.8]} 16... exd4 {[%clk 0:02:36.7]} 17.
exd4 {[%clk 0:01:48]} 17... Bg4 {[%clk 0:02:29.1]} 18. Qd3 {[%clk 0:01:45.2]}
18... c5 {[%clk 0:02:22.3]} 19. Nd2 {[%clk 0:01:19.1]} 19... Rc8 {[%clk
0:02:15.8]} 20. Rf2 {[%clk 0:01:14.4]} 20... cxd4 {[%clk 0:02:02.3]} 21. Qxd4
{[%clk 0:01:15.3]} 21... Be6 {[%clk 0:02:02.7]} 22. Nd1 {[%clk 0:00:50.3]} 22...
Ng4 {[%clk 0:01:59.8]} 23. Re2 {[%clk 0:00:49.3]} 23... N6e5 {[%clk 0:01:54.6]}
24. h3 {[%clk 0:00:43.3]} 24... Nf6 {[%clk 0:01:50]} 25. Ne3 {[%clk 0:00:43.8]}
25... Nfd7 {[%clk 0:01:47.5]} 26. Qxd6 {[%clk 0:00:37.3]} 26... Qg5 {[%clk
0:01:45.9]} 27. Kh2 {[%clk 0:00:34.7]} 27... Nc5 {[%clk 0:01:43.5]} 28. h4
{[%clk 0:00:30.1]} 28... Ng4+ {[%clk 0:01:34.9]} 29. Nxg4 {[%clk 0:00:27.5]}
29... Qxg4 {[%clk 0:01:35.8]} 30. Bf3 {[%clk 0:00:24.9]} 30... Qg6 {[%clk
0:01:35.6]} 31. Qf4 {[%clk 0:00:19.7]} 31... Nd3 {[%clk 0:01:35.2]} 32. Qe3
{[%clk 0:00:19.7]} 32... Ne5 {[%clk 0:01:35.8]} 33. Qf4 {[%clk 0:00:12.3]} 33...
Nxc4 {[%clk 0:01:33]} 34. Nxc4 {[%clk 0:00:12.3]} 34... Rxc4 {[%clk 0:01:32.5]}
35. Bg2 {[%clk 0:00:10.8]} 35... Qg4 {[%clk 0:01:28.6]} 36. Qxg4 {[%clk
0:00:10.5]} 36... Bxg4 {[%clk 0:01:29.5]} 37. Rd2 {[%clk 0:00:11.3]} 37... b6
{[%clk 0:01:27.2]} 38. Rd6 {[%clk 0:00:11]} 38... Re6 {[%clk 0:01:27.4]} 39.
Rxe6 {[%clk 0:00:09.4]} 39... Bxe6 {[%clk 0:01:28.3]} 40. Rd1 {[%clk 0:00:09.6]}
40... Rxa4 {[%clk 0:01:24.3]} 41. Rd6 {[%clk 0:00:10.2]} 41... Rb4 {[%clk
0:01:23.7]} 42. Rxb6 {[%clk 0:00:10.3]} 42... g5 {[%clk 0:01:23.5]} 43. hxg5
{[%clk 0:00:10.2]} 43... hxg5 {[%clk 0:01:24.4]} 44. Rb8+ {[%clk 0:00:10.3]}
44... Kg7 {[%clk 0:01:24.5]} 45. b6 {[%clk 0:00:11.2]} 45... a4 {[%clk
0:01:07.1]} 46. b7 {[%clk 0:00:11.5]} 46... a3 {[%clk 0:01:05.9]} 47. Ra8 {[%clk
0:00:10.1]} 47... Rxb7 {[%clk 0:00:54.9]} 48. Rxa3 {[%clk 0:00:09.7]} 48... Rb2
{[%clk 0:00:55.5]} 49. Kg1 {[%clk 0:00:09.7]} 49... Kf6 {[%clk 0:00:54.9]} 50.
Ra5 {[%clk 0:00:09.4]} 50... Re2 {[%clk 0:00:54.6]} 51. Bf3 {[%clk 0:00:09.4]}
51... Rd2 {[%clk 0:00:53.6]} 52. Ra1 {[%clk 0:00:06.6]} 52... g4 {[%clk
0:00:51.2]} 53. Bg2 {[%clk 0:00:06.3]} 53... Ke5 {[%clk 0:00:50.2]} 54. Rf1
{[%clk 0:00:05.1]} 54... Rd3 {[%clk 0:00:49]} 55. Re1 {[%clk 0:00:04.2]} 55...
Rxg3 {[%clk 0:00:48.9]} 56. Kf2 {[%clk 0:00:04.8]} 56... Ra3 {[%clk 0:00:49.1]}
57. Re3 {[%clk 0:00:05.4]} 57... Rxe3 {[%clk 0:00:40.7]} 58. Kxe3 {[%clk
0:00:05]} 58... Bc4 {[%clk 0:00:41.6]} 59. Bh1 {[%clk 0:00:05.5]} 59... Ba6
{[%clk 0:00:35]} 60. Bg2 {[%clk 0:00:05]} 60... Bb7 {[%clk 0:00:35.4]} 61. Bh1
{[%clk 0:00:04.3]} 61... f5 {[%clk 0:00:35]} 62. Bg2 {[%clk 0:00:03.1]} 62...
Bxe4 {[%clk 0:00:35.2]} 63. Bf1 {[%clk 0:00:03.6]} 63... f4+ {[%clk 0:00:35.5]}
64. Kf2 {[%clk 0:00:04]} 64... g3+ {[%clk 0:00:36.4]} 65. Kg1 {[%clk 0:00:04.4]}
65... f3 {[%clk 0:00:36.6]} 66. Ba6 {[%clk 0:00:05.1]} 66... Kf4 {[%clk
0:00:36.5]} 67. Bc4 {[%clk 0:00:04.5]} 67... Ke3 {[%clk 0:00:36.5]} 68. Ba6
{[%clk 0:00:03.6]} 68... f2+ {[%clk 0:00:37]} 69. Kf1 {[%clk 0:00:03.9]} 69...
g2# {[%clk 0:00:37.9]} 0-1

[Event "Early-Titled-Tuesday-Blitz-June-18-2024"]
[Site "Chess.com"]
[Date "2024.06.18"]
[Round "5"]
[White "Aryan_Tamadon"]
[Black "EdenDzung06"]
[Result "0-1"]
[WhiteElo "2673"]
[BlackElo "2446"]
[TimeControl "180+1"]
[EndTime "8:59:11 PDT"]
[Termination "EdenDzung06 won on time"]

1. b3 {[%clk 0:02:59.6]} 1... b6 {[%clk 0:02:58.7]} 2. Bb2 {[%clk 0:03:00.5]}
2... Bb7 {[%clk 0:02:59.2]} 3. Nf3 {[%clk 0:02:50.8]} 3... Nf6 {[%clk
0:02:51.7]} 4. g3 {[%clk 0:02:48.6]} 4... g6 {[%clk 0:02:46.4]} 5. Bg2 {[%clk
0:02:48.7]} 5... Bg7 {[%clk 0:02:47]} 6. O-O {[%clk 0:02:49.3]} 6... O-O {[%clk
0:02:47.2]} 7. d4 {[%clk 0:02:49.5]} 7... d6 {[%clk 0:02:46.6]} 8. c4 {[%clk
0:02:46.1]} 8... Nbd7 {[%clk 0:02:46.9]} 9. Nc3 {[%clk 0:02:41.4]} 9... Ne4
{[%clk 0:02:46]} 10. Nd5 {[%clk 0:02:27.8]} 10... e6 {[%clk 0:02:39.4]} 11. Ne3
{[%clk 0:02:17]} 11... f5 {[%clk 0:02:27.7]} 12. Qc2 {[%clk 0:02:14.3]} 12...
Qe7 {[%clk 0:02:25.1]} 13. Rad1 {[%clk 0:02:06.2]} 13... Rae8 {[%clk 0:02:25]}
14. b4 {[%clk 0:02:01.9]} 14... e5 {[%clk 0:02:18.7]} 15. d5 {[%clk 0:01:56.4]}
15... Nef6 {[%clk 0:01:55.8]} 16. c5 {[%clk 0:01:39.1]} 16... bxc5 {[%clk
0:01:53]} 17. bxc5 {[%clk 0:01:40]} 17... Nxc5 {[%clk 0:01:48.3]} 18. Nc4 {[%clk
0:01:20.7]} 18... Bxd5 {[%clk 0:01:41.9]} 19. Rxd5 {[%clk 0:01:15.9]} 19... Nxd5
{[%clk 0:01:40.6]} 20. Nfxe5 {[%clk 0:01:16.2]} 20... Nb4 {[%clk 0:01:35]} 21.
Qd2 {[%clk 0:01:10.5]} 21... Bxe5 {[%clk 0:01:30.7]} 22. Nxe5 {[%clk 0:01:02.5]}
22... dxe5 {[%clk 0:01:27.3]} 23. Qxb4 {[%clk 0:01:00.8]} 23... Ne6 {[%clk
0:01:26.1]} 24. Qa5 {[%clk 0:00:42.7]} 24... Nd4 {[%clk 0:01:20.9]} 25. e3
{[%clk 0:00:34.9]} 25... Rb8 {[%clk 0:01:06.9]} 26. Ba3 {[%clk 0:00:27.4]} 26...
Ne2+ {[%clk 0:01:06]} 27. Kh1 {[%clk 0:00:26.9]} 27... c5 {[%clk 0:00:47.6]} 28.
Bxc5 {[%clk 0:00:23.7]} 28... Qd8 {[%clk 0:00:46.8]} 29. Qe1 {[%clk 0:00:10.7]}
29... Rb2 {[%clk 0:00:37]} 30. Bxf8 {[%clk 0:00:09.4]} 30... Qxf8 {[%clk
0:00:37.9]} 31. Bd5+ {[%clk 0:00:09.3]} 31... Kg7 {[%clk 0:00:37.6]} 32. Qa5
{[%clk 0:00:07.8]} 32... Qb8 {[%clk 0:00:34.3]} 33. Kg2 {[%clk 0:00:04.4]} 33...
f4 {[%clk 0:00:31.1]} 34. exf4 {[%clk 0:00:03.4]} 34... exf4 {[%clk 0:00:32]}
35. Bf3 {[%clk 0:00:03.4]} 35... fxg3 {[%clk 0:00:29.9]} 36. hxg3 {[%clk
0:00:04.1]} 36... Nxg3 {[%clk 0:00:26.6]} 37. Qc3+ {[%clk 0:00:02.8]} 37... Kh6
{[%clk 0:00:19.7]} 38. Re1 {[%clk 0:00:01.8]} 38... Nf5 {[%clk 0:00:14.7]} 39.
Rh1+ {[%clk 0:00:01.9]} 39... Kg5 {[%clk 0:00:13.7]} 40. Qc1+ {[%clk 0:00:02.2]}
40... Kf6 {[%clk 0:00:13.1]} 41. Qc3+ {[%clk 0:00:02.6]} 41... Qe5 {[%clk
0:00:13.7]} 42. Qc6+ {[%clk 0:00:03]} 42... Qe6 {[%clk 0:00:13.8]} 43. Qc3+
{[%clk 0:00:03.4]} 43... Qe5 {[%clk 0:00:14.2]} 44. Qc6+ {[%clk 0:00:03]} 44...
Kg7 {[%clk 0:00:13.6]} 45. Rd1 {[%clk 0:00:02.4]} 45... Nh4+ {[%clk 0:00:13]}
46. Kh3 {[%clk 0:00:01.7]} 46... Nxf3 {[%clk 0:00:07.5]} 47. Rd7+ {[%clk
0:00:02.6]} 47... Kh6 {[%clk 0:00:08]} 48. Qc1+ {[%clk 0:00:02.8]} 48... Ng5+
{[%clk 0:00:07.2]} 49. Kh4 {[%clk 0:00:02.6]} 49... Qe4+ {[%clk 0:00:07.2]} 50.
f4 {[%clk 0:00:01.9]} 50... Rh2+ {[%clk 0:00:06.4]} 0-1